Workbook

Sheet 7-11 лет
A1: МЕНЮ ОСНОВНОЕ, СОШ Астрахань, 7-11 лет (завтрак, обед).
A2: День/прием пищи | B2: Наименование блюд | C2: Выход 7-10 лет, грамм. | D2: Пищевые вещества, грамм. | H2: Витамины, мг. | M2: Минеральные вещества, мг. | U2: № рецептур
D3: Белки | E3: Жиры | F3: Углеводы | G3: Ккал. | H3: С | I3: В1 | J3: В2 | K3: А | L3: D, мкг. | M3: Са | N3: Р | O3: Мq | P3: Fe | Q3: K | R3: I | S3: Se | T3: F
A4: 1 день
A5: завтрак | B5: Каша пшеничная | C5: 205 | D5: 11.02 | E5: 13.20 | F5: 57.97 | G5: 394.40 | H5: 1.72 | I5: 0.06 | J5: 0.04 | K5: 74.00 | L5: 3.75 | M5: 189.72 | N5: 58.71 | O5: 55.75 | P5: 1.27 | Q5: 0.73 | R5: 0.01 | S5: 0.00 | T5: 0.06 | U5: 221
B6: Чай с сахаром | C6: 200 | D6: 0.07 | E6: 0.02 | F6: 11.09 | G6: 44.40 | H6: 0.03 | I6: 0.00 | J6: 0.00 | K6: 0.00 | L6: 0.00 | M6: 16.76 | N6: 2.80 | O6: 1.44 | P6: 0.31 | Q6: 2.82 | R6: 0.00 | S6: 0.00 | T6: 0.00 | U6: 376
B7: Кондитерское изделие (пряник) | C7: 30 | D7: 2.30 | E7: 5.40 | F7: 20.10 | G7: 138.90 | H7: 0.00 | I7: 0.00 | J7: 0.00 | K7: 0.00 | L7: 0.00 | M7: 0.00 | N7: 0.00 | O7: 0.00 | P7: 0.00 | Q7: 0.00 | R7: 0.00 | S7: 0.00 | T7: 0.00 | U7: ПР
B8: Хлеб пшеничный | C8: 65 | D8: 5.14 | E8: 0.65 | F8: 31.40 | G8: 153.40 | H8: 0.00 | I8: 0.10 | J8: 0.04 | K8: 0.00 | L8: 0.00 | M8: 22.57 | N8: 56.55 | O8: 21.45 | P8: 1.30 | Q8: 28.53 | R8: 0.00 | S8: 0.00 | T8: 0.00 | U8: ПР
B9: Итого: | C9: =SUM(C5:C8) -> 500 | D9: 18.53 | E9: 19.27 | F9: 120.56 | G9: 731.10 | H9: 1.75 | I9: 0.16 | J9: 0.08 | K9: 74.00 | L9: 3.75 | M9: 229.05 | N9: 118.06 | O9: 78.64 | P9: 2.88 | Q9: 32.08 | R9: 0.01 | S9: 0.00 | T9: 0.06
A10: обед | B10: Салат из белокочанной капусты | C10: 60 | D10: 0.84 | E10: 3.05 | F10: 5.41 | G10: 52.44 | H10: 19.47 | I10: 0.02 | J10: 0.02 | K10: 0.00 | L10: 0.00 | M10: 33.85 | N10: 16.57 | O10: 9.10 | P10: 0.31 | Q10: 46.16 | R10: 0.00 | S10: 0.00 | T10: 0.02 | U10: 45
B11: Суп картофельный с клецками | C11: 250 | D11: 2.60 | E11: 2.70 | F11: 15.80 | G11: 102.00 | H11: 4.60 | I11: 0.08 | J11: 0.06 | K11: 8.00 | L11: 0.00 | M11: 13.85 | N11: 0.00 | O11: 17.67 | P11: 0.76 | Q11: 0.00 | R11: 0.00 | S11: 0.00 | T11: 0.00 | U11: 91
B12: Котлета мясная с соусом молочным | C12: 90 | D12: 10.98 | E12: 12.23 | F12: 9.47 | G12: 192.00 | H12: 0.26 | I12: 0.06 | J12: 0.12 | K12: 48.00 | L12: 0.59 | M12: 111.21 | N12: 134.40 | O12: 22.80 | P12: 0.92 | Q12: 71.03 | R12: 0.00 | S12: 0.00 | T12: 2.00 | U12: 268
B13: Каша гречневая рассыпчатая | C13: 150 | D13: 8.60 | E13: 6.09 | F13: 38.64 | G13: 243.75 | H13: 0.00 | I13: 0.21 | J13: 0.11 | K13: 21.00 | L13: 0.00 | M13: 22.38 | N13: 203.93 | O13: 135.83 | P13: 4.56 | Q13: 85.67 | R13: 0.00 | S13: 0.00 | T13: 0.04 | U13: 302
B14: Компот из сухофруктов | C14: 200 | D14: 0.44 | E14: 0.02 | F14: 27.77 | G14: 113.00 | H14: 0.40 | I14: 0.00 | J14: 0.01 | K14: 0.00 | L14: 0.00 | M14: 48.05 | N14: 15.40 | O14: 6.00 | P14: 1.25 | Q14: 38.44 | R14: 0.00 | S14: 0.00 | T14: 0.00 | U14: 349
B15: Хлеб пшеничный | C15: 20 | D15: 1.58 | E15: 0.20 | F15: 9.66 | G15: 47.20 | H15: 0.00 | I15: 0.03 | J15: 0.01 | K15: 0.00 | L15: 0.00 | M15: 6.94 | N15: 17.42 | O15: 6.60 | P15: 0.40 | Q15: 8.78 | R15: 0.00 | S15: 0.00 | T15: 0.00 | U15: ПР
B16: Хлеб ржаной | C16: 30 | D16: 1.98 | E16: 0.36 | F16: 10.02 | G16: 52.00 | H16: 0.00 | I16: 0.06 | J16: 0.03 | K16: 0.00 | L16: 0.00 | M16: 15.85 | N16: 47.40 | O16: 14.10 | P16: 0.67 | Q16: 24.25 | R16: 0.00 | S16: 0.00 | T16: 0.06 | U16: ПР
B17: Итого: | C17: =SUM(C10:C16) -> 800 | D17: 27.02 | E17: 24.65 | F17: 116.77 | G17: 802.39 | H17: 24.73 | I17: 0.46 | J17: 0.36 | K17: 77.00 | L17: 0.59 | M17: 252.13 | N17: 435.12 | O17: 212.10 | P17: 8.87 | Q17: 274.33 | R17: 0.00 | S17: 0.00 | T17: 2.12
B18: Итого за день: | C18: =C9+C17 -> 1300 | D18: 45.55 | E18: 43.92 | F18: 237.33 | G18: 1533.49 | H18: 26.48 | I18: 0.62 | J18: 0.44 | K18: 151.00 | L18: 4.34 | M18: 481.18 | N18: 553.18 | O18: 290.74 | P18: 11.75 | Q18: 306.41 | R18: 0.01 | S18: 0.00 | T18: 2.18
A19: * с 01 марта производится замена на салат из вареных овощей
A20: 2 день
A21: завтрак | B21: Каша молочная геркулесовая | C21: 205 | D21: 6.00 | E21: 11.20 | F21: 26.40 | G21: 238.00 | H21: 0.00 | I21: 0.56 | J21: 0.16 | K21: 49.82 | L21: 0.00 | M21: 46.00 | N21: 213.62 | O21: 38.00 | P21: 2.00 | Q21: 265.31 | R21: 0.00 | S21: 0.00 | T21: 0.28 | U21: 311
B22: Масло сливочное | C22: 10 | D22: 0.10 | E22: 8.30 | F22: 0.10 | G22: 74.80 | H22: 0.00 | I22: 0.00 | J22: 0.01 | K22: 40.00 | L22: 0.80 | M22: 3.62 | N22: 3.00 | O22: 0.00 | P22: 0.02 | Q22: 0.99 | R22: 0.00 | S22: 0.00 | T22: 0.00 | U22: ПР
B23: Фрукты свежие (сезон) | C23: 100 | D23: =0.8/150*100 -> 0.53 | E23: 0.53 | F23: 13.06 | G23: 58.66 | H23: 13.33 | I23: 0.04 | J23: 0.03 | K23: 0.00 | L23: 0.00 | M23: 32.21 | N23: 14.66 | O23: 12.00 | P23: 2.93 | Q23: 122.32 | R23: 0.00 | S23: 0.00 | T23: 0.04 | U23: 338
B24: Чай с лимоном | C24: 200 | D24: 0.13 | E24: 0.02 | F24: 11.32 | G24: 45.51 | H24: 3.14 | I24: 0.00 | J24: 0.00 | K24: 0.00 | L24: 0.00 | M24: 21.46 | N24: 4.44 | O24: 2.44 | P24: 0.36 | Q24: 7.03 | R24: 0.00 | S24: 0.00 | T24: 0.01 | U24: 377
B25: Хлеб пшеничный | C25: 65 | D25: 5.14 | E25: 0.65 | F25: 31.40 | G25: 153.40 | H25: 0.00 | I25: 0.10 | J25: 0.04 | K25: 0.00 | L25: 0.00 | M25: 22.57 | N25: 56.55 | O25: 21.45 | P25: 1.30 | Q25: 28.53 | R25: 0.00 | S25: 0.00 | T25: 0.00 | U25: ПР
B26: Итого: | C26: =SUM(C21:C25) -> 580 | D26: 11.90 | E26: 20.70 | F26: 82.28 | G26: 570.37 | H26: 16.47 | I26: 0.70 | J26: 0.24 | K26: 89.82 | L26: 0.80 | M26: 125.86 | N26: 292.27 | O26: 73.89 | P26: 6.61 | Q26: 424.18 | R26: 0.00 | S26: 0.00 | T26: 0.33
A27: обед | B27: Салат из свеклы отварной | C27: 60 | D27: 0.86 | E27: 3.65 | F27: 5.02 | G27: 56.34 | H27: 5.70 | I27: 0.01 | J27: 0.02 | K27: 0.00 | L27: 0.00 | M27: 31.85 | N27: 24.58 | O27: 12.54 | P27: 0.80 | Q27: 54.17 | R27: 0.01 | S27: 0.00 | T27: 0.06 | U27: 52
B28: Рассольник Ленинградский со сметаной | C28: 250 | D28: 2.10 | E28: 5.12 | F28: 16.59 | G28: 120.75 | H28: 7.54 | I28: 0.10 | J28: 0.06 | K28: 0.00 | L28: 0.05 | M28: 39.94 | N28: 71.95 | O28: 25.90 | P28: 0.97 | Q28: 159.89 | R28: 0.01 | S28: 0.05 | T28: 1.29 | U28: 96
B29: Рагу из птицы | C29: 240 | D29: 22.48 | E29: 27.84 | F29: 18.50 | G29: 414.16 | H29: 10.69 | I29: 0.19 | J29: 0.16 | K29: 81.04 | L29: 0.00 | M29: 7.20 | N29: 170.87 | O29: 55.81 | P29: 1.89 | Q29: 244.19 | R29: 0.01 | S29: 0.00 | T29: 1.04 | U29: 373
B30: Компот из сухофруктов | C30: 200 | D30: 0.44 | E30: 0.02 | F30: 27.77 | G30: 113.00 | H30: 0.40 | I30: 0.00 | J30: 0.01 | K30: 0.00 | L30: 0.00 | M30: 48.05 | N30: 15.40 | O30: 6.00 | P30: 1.25 | Q30: 38.44 | R30: 0.00 | S30: 0.00 | T30: 0.00 | U30: 349
B31: Хлеб пшеничный | C31: 20 | D31: 1.58 | E31: 0.20 | F31: 9.66 | G31: 47.20 | H31: 0.00 | I31: 0.03 | J31: 0.01 | K31: 0.00 | L31: 0.00 | M31: 6.94 | N31: 17.42 | O31: 6.60 | P31: 0.40 | Q31: 8.78 | R31: 0.00 | S31: 0.00 | T31: 0.00 | U31: ПР
B32: Хлеб ржаной | C32: 30 | D32: 1.98 | E32: 0.36 | F32: 10.02 | G32: 52.00 | H32: 0.00 | I32: 0.06 | J32: 0.03 | K32: 0.00 | L32: 0.00 | M32: 15.85 | N32: 47.40 | O32: 14.10 | P32: 0.67 | Q32: 24.25 | R32: 0.00 | S32: 0.00 | T32: 0.06 | U32: ПР
B33: Итого: | C33: =SUM(C27:C32) -> 800 | D33: 29.44 | E33: 37.19 | F33: 87.56 | G33: 803.45 | H33: 24.33 | I33: 0.39 | J33: 0.29 | K33: 81.04 | L33: 0.05 | M33: 149.83 | N33: 347.62 | O33: 120.95 | P33: 5.98 | Q33: 529.72 | R33: 0.03 | S33: 0.05 | T33: 2.45
B34: Итого за день: | C34: =C26+C33 -> 1380 | D34: 41.34 | E34: 57.89 | F34: 169.84 | G34: 1373.82 | H34: 40.80 | I34: 1.09 | J34: 0.53 | K34: 170.86 | L34: 0.85 | M34: 275.69 | N34: 639.89 | O34: 194.84 | P34: 12.59 | Q34: 953.90 | R34: 0.03 | S34: 0.05 | T34: 2.78
A35: * с 01 марта производится замена на салат из вареных овощей
A36: 3 день
A37: завтрак | B37: Омлет натуральный | C37: 150 | D37: 14.33 | E37: 27.60 | F37: 2.75 | G37: 317.50 | H37: 0.25 | I37: 0.10 | J37: 0.60 | K37: 375.00 | L37: 16.08 | M37: 175.16 | N37: 262.75 | O37: 19.50 | P37: 2.95 | Q37: 74.42 | R37: 0.04 | S37: 0.00 | T37: 0.33 | U37: 210
B38: Кукуруза консервированная | C38: 60 | D38: 1.22 | E38: 2.18 | F38: 6.64 | G38: 54.63 | H38: 2.88 | I38: 0.01 | J38: 0.03 | K38: 1.20 | L38: 0.00 | M38: 38.05 | N38: 24.60 | O38: 7.80 | P38: 0.22 | Q38: 26.93 | R38: 0.00 | S38: 0.00 | T38: 0.04 | U38: 8.34 Т 2011
B39: Кондитерское изделие (пряник) | C39: 30 | D39: 2.30 | E39: 5.40 | F39: 20.10 | G39: 138.90 | H39: 0.00 | I39: 0.00 | J39: 0.00 | K39: 0.00 | L39: 0.00 | M39: 0.00 | N39: 0.00 | O39: 0.00 | P39: 0.00 | Q39: 0.00 | R39: 0.00 | S39: 0.00 | T39: 0.00 | U39: ПР
B40: Хлеб пшеничный | C40: 65 | D40: 5.14 | E40: 0.65 | F40: 31.40 | G40: 153.40 | H40: 0.00 | I40: 0.10 | J40: 0.04 | K40: 0.00 | L40: 0.00 | M40: 22.57 | N40: 56.55 | O40: 21.45 | P40: 1.30 | Q40: 28.53 | R40: 0.00 | S40: 0.00 | T40: 0.00 | U40: ПР
B41: Чай с сахаром | C41: 200 | D41: 0.07 | E41: 0.02 | F41: 11.09 | G41: 44.40 | H41: 0.03 | I41: 0.00 | J41: 0.00 | K41: 0.00 | L41: 0.00 | M41: 16.76 | N41: 2.80 | O41: 1.44 | P41: 0.31 | Q41: 2.82 | R41: 0.00 | S41: 0.00 | T41: 0.00 | U41: 376
B42: Итого: | C42: =SUM(C37:C41) -> 505 | D42: 23.06 | E42: 35.85 | F42: 71.98 | G42: 708.83 | H42: 3.16 | I42: 0.21 | J42: 0.67 | K42: 376.20 | L42: 16.08 | M42: 252.54 | N42: 346.70 | O42: 50.19 | P42: 4.78 | Q42: 132.70 | R42: 0.04 | S42: 0.00 | T42: 0.37
A43: обед | B43: Салат из моркови с яблоками | C43: 60 | D43: 0.52 | E43: 3.13 | F43: 4.72 | G43: 49.14 | H43: 4.17 | I43: 0.03 | J43: 0.03 | K43: 0.00 | L43: 0.00 | M43: 19.19 | N43: 20.39 | O43: 14.41 | P43: 0.79 | Q43: 44.66 | R43: 0.00 | S43: 0.00 | T43: 0.01 | U43: 59
B44: Суп гороховый | C44: 250 | D44: 5.49 | E44: 5.27 | F44: 16.54 | G44: 148.25 | H44: 5.83 | I44: 0.23 | J44: 0.07 | K44: 0.00 | L44: 0.00 | M44: 64.45 | N44: 88.10 | O44: 35.58 | P44: 2.05 | Q44: 156.03 | R44: 0.00 | S44: 0.00 | T44: 0.81 | U44: 119
B45: Тефтели мясные с соусом | C45: 90 | D45: 6.65 | E45: 7.37 | F45: 8.78 | G45: 128.25 | H45: 0.64 | I45: 0.05 | J45: 0.08 | K45: 29.25 | L45: 0.27 | M45: 49.72 | N45: 80.03 | O45: 16.20 | P45: 0.72 | Q45: 93.41 | R45: 0.00 | S45: 0.00 | T45: 0.28 | U45: 278
B46: Рис отварной | C46: 150 | D46: 3.65 | E46: 4.30 | F46: 36.67 | G46: 199.95 | H46: 0.00 | I46: 0.02 | J46: 0.02 | K46: 21.00 | L46: 0.27 | M46: 3.65 | N46: 60.60 | O46: 19.01 | P46: 0.51 | Q46: 13.28 | R46: 0.00 | S46: 0.00 | T46: 0.51 | U46: 304
B47: Компот из свежих фруктов | C47: 200 | D47: 0.16 | E47: 0.16 | F47: 23.88 | G47: 97.60 | H47: 1.72 | I47: 0.01 | J47: 0.01 | K47: 0.00 | L47: 0.00 | M47: 19.69 | N47: 4.40 | O47: 3.60 | P47: 0.94 | Q47: 34.66 | R47: 0.00 | S47: 0.00 | T47: 0.76 | U47: 342
B48: Хлеб пшеничный | C48: 20 | D48: 1.58 | E48: 0.20 | F48: 9.66 | G48: 47.20 | H48: 0.00 | I48: 0.03 | J48: 0.01 | K48: 0.00 | L48: 0.00 | M48: 6.94 | N48: 17.42 | O48: 6.60 | P48: 0.40 | Q48: 8.78 | R48: 0.00 | S48: 0.00 | T48: 0.00 | U48: ПР
B49: Хлеб ржаной | C49: 30 | D49: 1.98 | E49: 0.36 | F49: 10.02 | G49: 52.00 | H49: 0.00 | I49: 0.06 | J49: 0.03 | K49: 0.00 | L49: 0.00 | M49: 15.85 | N49: 47.40 | O49: 14.10 | P49: 0.67 | Q49: 24.25 | R49: 0.00 | S49: 0.00 | T49: 0.06 | U49: ПР
B50: Итого: | C50: =SUM(C43:C49) -> 800 | D50: 20.03 | E50: 20.79 | F50: 110.27 | G50: 722.39 | H50: 12.36 | I50: 0.43 | J50: 0.25 | K50: 50.25 | L50: 0.54 | M50: 179.49 | N50: 318.34 | O50: 109.50 | P50: 6.08 | Q50: 375.07 | R50: 0.00 | S50: 0.00 | T50: 2.43
B51: Итого за день: | C51: =C42+C50 -> 1305 | D51: =D42+D50 -> 43.09 | E51: =E42+E50 -> 56.64 | F51: =F42+F50 -> 182.25 | G51: =G42+G50 -> 1431.22 | H51: =H42+H50 -> 15.52 | I51: =I42+I50 -> 0.64 | J51: =J42+J50 -> 0.92 | K51: =K42+K50 -> 426.45 | L51: =L42+L50 -> 16.62 | M51: =M42+M50 -> 432.03 | N51: =N42+N50 -> 665.04 | O51: =O42+O50 -> 159.69 | P51: =P42+P50 -> 10.86 | Q51: =Q42+Q50 -> 507.77 | R51: =R42+R50 -> 0.04 | S51: =S42+S50 -> 0.00 | T51: =T42+T50 -> 2.80
A52: * с 01 марта производится замена на салат из вареных овощей
A53: 4 день
A54: завтрак | B54: Каша молочная Дружба | C54: 215 | D54: 4.24 | E54: 9.20 | F54: 46.96 | G54: 287.94 | H54: 0.00 | I54: 0.09 | J54: 0.02 | K54: 22.60 | L54: 0.80 | M54: 15.87 | N54: 188.94 | O54: 30.12 | P54: 0.88 | Q54: 23.84 | R54: 0.01 | S54: 0.00 | T54: 0.25 | U54: 175
B55: Сыр порционно | C55: 20 | D55: 5.24 | E55: 5.32 | F55: 0.00 | G55: 68.00 | H55: 0.18 | I55: 0.02 | J55: 0.10 | K55: 38.00 | L55: 1.02 | M55: 271.80 | N55: 112.00 | O55: 9.00 | P55: 0.18 | Q55: 6.60 | R55: 0.00 | S55: 0.00 | T55: 0.00 | U55: 15
B56: Масло сливочное | C56: 10 | D56: 0.10 | E56: 8.30 | F56: 0.10 | G56: 74.80 | H56: 0.00 | I56: 0.00 | J56: 0.01 | K56: 40.00 | L56: 0.80 | M56: 3.62 | N56: 3.00 | O56: 0.00 | P56: 0.02 | Q56: 0.99 | R56: 0.00 | S56: 0.00 | T56: 0.00 | U56: ПР
B57: Хлеб пшеничный | C57: 65 | D57: 5.14 | E57: 0.65 | F57: 31.40 | G57: 153.40 | H57: 0.00 | I57: 0.10 | J57: 0.04 | K57: 0.00 | L57: 0.00 | M57: 22.57 | N57: 56.55 | O57: 21.45 | P57: 1.30 | Q57: 28.53 | R57: 0.00 | S57: 0.00 | T57: 0.00 | U57: ПР
B58: Чай с сахаром | C58: 200 | D58: 0.07 | E58: 0.02 | F58: 11.09 | G58: 44.40 | H58: 0.03 | I58: 0.00 | J58: 0.00 | K58: 0.00 | L58: 0.00 | M58: 16.76 | N58: 2.80 | O58: 1.44 | P58: 0.31 | Q58: 2.82 | R58: 0.00 | S58: 0.00 | T58: 0.00 | U58: 376
B59: Итого: | C59: =SUM(C54:C58) -> 510 | D59: 14.79 | E59: 23.49 | F59: 89.55 | G59: 628.54 | H59: 0.21 | I59: 0.21 | J59: 0.17 | K59: 100.60 | L59: 2.62 | M59: 330.62 | N59: 363.29 | O59: 62.01 | P59: 2.69 | Q59: 62.78 | R59: 0.01 | S59: 0.00 | T59: 0.25
A60: обед | B60: Винегрет овощной | C60: 60 | D60: 0.81 | E60: 3.70 | F60: 5.06 | G60: 56.88 | H60: 6.15 | I60: 0.03 | J60: 0.06 | K60: 0.00 | L60: 0.00 | M60: 13.92 | N60: 14.40 | O60: 12.45 | P60: 0.36 | Q60: 27.92 | R60: 0.00 | S60: 0.00 | T60: 0.00 | U60: 46
B61: Суп-лапша | C61: 250 | D61: 2.21 | E61: 5.07 | F61: 11.92 | G61: 102.25 | H61: 0.50 | I61: 0.05 | J61: 0.02 | K61: 0.00 | L61: 0.54 | M61: 29.75 | N61: 29.30 | O61: 10.45 | P61: 0.59 | Q61: 17.53 | R61: 0.00 | S61: 0.00 | T61: 0.06 | U61: 113
B62: Сердце говяжье в соусе | C62: 90 | D62: 20.26 | E62: 13.02 | F62: 4.34 | G62: 215.71 | H62: 0.70 | I62: 0.15 | J62: 0.08 | K62: 40.46 | L62: 0.05 | M62: 33.15 | N62: 0.00 | O62: 26.86 | P62: 0.00 | Q62: 0.00 | R62: 0.00 | S62: 0.00 | T62: 0.00 | U62: 360
B63: Картофельное пюре | C63: 150 | D63: 3.06 | E63: 4.80 | F63: 20.44 | G63: 137.25 | H63: 18.16 | I63: 0.14 | J63: 0.11 | K63: 25.50 | L63: 0.48 | M63: 55.84 | N63: 86.60 | O63: 27.75 | P63: 1.01 | Q63: 213.99 | R63: 0.01 | S63: 0.00 | T63: 0.21 | U63: 312
B64: Чай с сахаром | C64: 200 | D64: 0.07 | E64: 0.02 | F64: 11.09 | G64: 44.40 | H64: 0.03 | I64: 0.00 | J64: 0.00 | K64: 0.00 | L64: 0.00 | M64: 16.76 | N64: 2.80 | O64: 1.44 | P64: 0.31 | Q64: 2.82 | R64: 0.00 | S64: 0.00 | T64: 0.00 | U64: 376
B65: Фрукты свежие (сезон) | C65: 100 | D65: =0.8/150*100 -> 0.53 | E65: 0.53 | F65: 13.06 | G65: 58.66 | H65: 13.33 | I65: 0.04 | J65: 0.03 | K65: 0.00 | L65: 0.00 | M65: 32.21 | N65: 14.66 | O65: 12.00 | P65: 2.93 | Q65: 122.32 | R65: 0.00 | S65: 0.00 | T65: 0.04 | U65: 338
B66: Хлеб пшеничный | C66: 20 | D66: 1.58 | E66: 0.20 | F66: 9.66 | G66: 47.20 | H66: 0.00 | I66: 0.03 | J66: 0.01 | K66: 0.00 | L66: 0.00 | M66: 6.94 | N66: 17.42 | O66: 6.60 | P66: 0.40 | Q66: 8.78 | R66: 0.00 | S66: 0.00 | T66: 0.00 | U66: ПР
B67: Хлеб ржаной | C67: 30 | D67: 1.98 | E67: 0.36 | F67: 10.02 | G67: 52.00 | H67: 0.00 | I67: 0.06 | J67: 0.03 | K67: 0.00 | L67: 0.00 | M67: 15.85 | N67: 47.40 | O67: 14.10 | P67: 0.67 | Q67: 24.25 | R67: 0.00 | S67: 0.00 | T67: 0.06 | U67: ПР
B68: Итого: | C68: =SUM(C60:C67) -> 900 | D68: 30.50 | E68: 27.70 | F68: 85.59 | G68: 714.35 | H68: 38.87 | I68: 0.50 | J68: 0.33 | K68: 65.96 | L68: 1.07 | M68: 204.42 | N68: 212.58 | O68: 111.65 | P68: 6.27 | Q68: 417.61 | R68: 0.01 | S68: 0.00 | T68: 0.37
B69: Итого за день: | C69: =C59+C68 -> 1410 | D69: 45.29 | E69: 51.19 | F69: 175.14 | G69: 1342.89 | H69: 39.08 | I69: 0.71 | J69: 0.50 | K69: 166.56 | L69: 3.69 | M69: 535.04 | N69: 575.87 | O69: 173.66 | P69: 8.96 | Q69: 480.39 | R69: 0.02 | S69: 0.00 | T69: 0.62
A70: * с 01 марта производится замена на салат из вареных овощей
A71: 5 день
A72: завтрак | B72: Макароны, запеченные с сыром | C72: 200 | D72: 9.52 | E72: 9.34 | F72: 39.51 | G72: 280.00 | H72: 0.04 | I72: 0.06 | J72: 0.04 | K72: 38.00 | L72: 3.75 | M72: 56.09 | N72: 58.71 | O72: 33.27 | P72: 1.52 | Q72: 0.73 | R72: 0.01 | S72: 0.00 | T72: 0.06 | U72: *221
B73: Кондитерское изделие (пряник) | C73: 30 | D73: 2.30 | E73: 5.40 | F73: 20.10 | G73: 138.90 | H73: 0.00 | I73: 0.00 | J73: 0.00 | K73: 0.00 | L73: 0.00 | M73: 0.00 | N73: 0.00 | O73: 0.00 | P73: 0.00 | Q73: 0.00 | R73: 0.00 | S73: 0.00 | T73: 0.00 | U73: ПР
B74: Масло сливочное | C74: 10 | D74: 0.10 | E74: 8.30 | F74: 0.10 | G74: 74.80 | H74: 0.00 | I74: 0.00 | J74: 0.01 | K74: 40.00 | L74: 0.80 | M74: 3.62 | N74: 3.00 | O74: 0.00 | P74: 0.02 | Q74: 0.99 | R74: 0.00 | S74: 0.00 | T74: 0.00 | U74: ПР
B75: Чай с сахаром | C75: 200 | D75: 0.07 | E75: 0.02 | F75: 11.09 | G75: 44.40 | H75: 0.03 | I75: 0.00 | J75: 0.00 | K75: 0.00 | L75: 0.00 | M75: 16.76 | N75: 2.80 | O75: 1.44 | P75: 0.31 | Q75: 2.82 | R75: 0.00 | S75: 0.00 | T75: 0.00 | U75: 338
B76: Хлеб пшеничный | C76: 65 | D76: 5.14 | E76: 0.65 | F76: 31.40 | G76: 153.40 | H76: 0.00 | I76: 0.10 | J76: 0.04 | K76: 0.00 | L76: 0.00 | M76: 22.57 | N76: 56.55 | O76: 21.45 | P76: 1.30 | Q76: 28.53 | R76: 0.00 | S76: 0.00 | T76: 0.00 | U76: ПР
B77: Итого: | C77: =SUM(C72:C76) -> 505 | D77: 17.13 | E77: 23.71 | F77: 102.20 | G77: 691.50 | H77: 0.07 | I77: 0.16 | J77: 0.09 | K77: 78.00 | L77: 4.55 | M77: 99.04 | N77: 121.06 | O77: 56.16 | P77: 3.15 | Q77: 33.07 | R77: 0.01 | S77: 0.00 | T77: 0.06 | U77: 46
A78: обед | B78: Огурец свежий (соленый) в нарезке | C78: 60 | D78: 0.45 | E78: 0.07 | F78: 2.10 | G78: 8.47 | H78: 2.10 | I78: 0.01 | J78: 0.06 | K78: 0.00 | L78: 0.00 | M78: 20.84 | N78: 14.40 | O78: 8.40 | P78: 0.36 | Q78: 27.92 | R78: 0.00 | S78: 0.00 | T78: 0.00 | U78: 3
B79: Борщ с капустой и картофелем и сметаной | C79: 250 | D79: 2.04 | E79: 5.01 | F79: 14.11 | G79: 109.75 | H79: 8.79 | I79: 0.08 | J79: 0.06 | K79: 0.00 | L79: 0.27 | M79: 55.31 | N79: 64.43 | O79: 29.95 | P79: 1.34 | Q79: 162.37 | R79: 0.01 | S79: 0.00 | T79: 0.13 | U79: 388
B80: Плов из птицы | C80: 240 | D80: 24.00 | E80: 22.17 | F80: 40.14 | G80: 456.00 | H80: 0.62 | I80: 0.30 | J80: 0.12 | K80: 72.00 | L80: 0.38 | M80: 68.40 | N80: 234.15 | O80: 51.30 | P80: 2.18 | Q80: 83.85 | R80: 0.00 | S80: 0.01 | T80: 0.22 | U80: 291
B81: Компот из сухофруктов | C81: 200 | D81: 0.44 | E81: 0.02 | F81: 27.77 | G81: 113.00 | H81: 0.40 | I81: 0.00 | J81: 0.01 | K81: 0.00 | L81: 0.00 | M81: 48.05 | N81: 15.40 | O81: 6.00 | P81: 1.25 | Q81: 38.44 | R81: 0.00 | S81: 0.00 | T81: 0.00 | U81: ПР
B82: Хлеб пшеничный | C82: 20 | D82: 1.58 | E82: 0.20 | F82: 9.66 | G82: 47.20 | H82: 0.00 | I82: 0.03 | J82: 0.01 | K82: 0.00 | L82: 0.00 | M82: 6.94 | N82: 17.42 | O82: 6.60 | P82: 0.40 | Q82: 8.78 | R82: 0.00 | S82: 0.00 | T82: 0.00 | U82: ПР
B83: Хлеб ржаной | C83: 30 | D83: 1.98 | E83: 0.36 | F83: 10.02 | G83: 52.00 | H83: 0.00 | I83: 0.06 | J83: 0.03 | K83: 0.00 | L83: 0.00 | M83: 15.85 | N83: 47.40 | O83: 14.10 | P83: 0.67 | Q83: 24.25 | R83: 0.00 | S83: 0.00 | T83: 0.06
B84: Итого: | C84: =SUM(C78:C83) -> 800 | D84: 30.49 | E84: 27.83 | F84: 103.80 | G84: 786.42 | H84: 11.91 | I84: 0.48 | J84: 0.29 | K84: 72.00 | L84: 0.65 | M84: 215.39 | N84: 393.20 | O84: 116.35 | P84: 6.20 | Q84: 345.61 | R84: 0.01 | S84: 0.01 | T84: 0.41
B85: Итого за день: | C85: =C77+C84 -> 1305 | D85: 47.62 | E85: 51.54 | F85: 206.00 | G85: 1477.92 | H85: 11.98 | I85: 0.64 | J85: 0.38 | K85: 150.00 | L85: 5.20 | M85: 314.43 | N85: 514.26 | O85: 172.51 | P85: 9.35 | Q85: 378.68 | R85: 0.02 | S85: 0.01 | T85: 0.47
A86: * с 01 марта производится замена на салат из вареных овощей
A87: 6 день
A88: завтрак | B88: Каша рисовая вязкая | C88: 215 | D88: 6.58 | E88: 10.95 | F88: 38.97 | G88: 280.86 | H88: 1.51 | I88: 0.06 | J88: 0.08 | K88: 62.92 | L88: 0.59 | M88: 146.78 | N88: 147.70 | O88: 39.03 | P88: 3.32 | Q88: 61.94 | R88: 0.01 | S88: 0.00 | T88: 0.46 | U88: 217
B89: Сыр порционно | C89: 20 | D89: 5.24 | E89: 5.32 | F89: 0.00 | G89: 68.00 | H89: 0.18 | I89: 0.02 | J89: 0.10 | K89: 38.00 | L89: 1.02 | M89: 271.80 | N89: 112.00 | O89: 9.00 | P89: 0.18 | Q89: 6.60 | R89: 0.00 | S89: 0.00 | T89: 0.00 | U89: 15
B90: Масло сливочное | C90: 10 | D90: 0.10 | E90: 8.30 | F90: 0.10 | G90: 74.80 | H90: 0.00 | I90: 0.00 | J90: 0.01 | K90: 40.00 | L90: 0.80 | M90: 3.62 | N90: 3.00 | O90: 0.00 | P90: 0.02 | Q90: 0.99 | R90: 0.00 | S90: 0.00 | T90: 0.00 | U90: ПР
B91: Чай с лимоном | C91: 200 | D91: 0.13 | E91: 0.02 | F91: 11.32 | G91: 45.51 | H91: 3.14 | I91: 0.00 | J91: 0.00 | K91: 0.00 | L91: 0.00 | M91: 21.46 | N91: 4.44 | O91: 2.44 | P91: 0.36 | Q91: 7.03 | R91: 0.00 | S91: 0.00 | T91: 0.01 | U91: 377
B92: Хлеб пшеничный | C92: 65 | D92: 5.14 | E92: 0.65 | F92: 31.40 | G92: 153.40 | H92: 0.00 | I92: 0.10 | J92: 0.04 | K92: 0.00 | L92: 0.00 | M92: 22.57 | N92: 56.55 | O92: 21.45 | P92: 1.30 | Q92: 28.53 | R92: 0.00 | S92: 0.00 | T92: 0.00 | U92: пр
B93: Итого: | C93: =SUM(C88:C92) -> 510 | D93: 17.19 | E93: 25.24 | F93: 81.79 | G93: 622.57 | H93: 4.83 | I93: 0.18 | J93: 0.23 | K93: 140.92 | L93: 2.41 | M93: 466.23 | N93: 323.69 | O93: 71.92 | P93: 5.18 | Q93: 105.09 | R93: 0.01 | S93: 0.00 | T93: 0.47
A94: обед | B94: Томаты свежие ( соленые) в нарезке | C94: 60 | D94: 0.70 | E94: 0.10 | F94: 2.30 | G94: 14.40 | H94: 15.00 | I94: 0.03 | J94: 0.02 | K94: 0.00 | L94: 0.00 | M94: 8.40 | N94: 15.60 | O94: 12.00 | P94: 0.54 | Q94: 174.00 | R94: 1.20 | S94: 0.24 | T94: 12.00 | U94: 4
B95: Суп картофельный с крупой рисовой | C95: 250 | D95: 2.22 | E95: 2.15 | F95: 13.60 | G95: 82.75 | H95: 7.80 | I95: 0.11 | J95: 0.07 | K95: 10.00 | L95: 0.00 | M95: 39.41 | N95: 82.65 | O95: 29.10 | P95: 1.30 | Q95: 160.55 | R95: 0.01 | S95: 0.00 | T95: 0.19 | U95: 101
B96: Печень по-строгановски | C96: 100 | D96: 16.20 | E96: 14.30 | F96: 5.90 | G96: 217.00 | H96: 10.80 | I96: 0.18 | J96: 130.52 | K96: 5203.80 | L96: 0.05 | M96: 30.00 | N96: 215.39 | O96: 19.60 | P96: 6.64 | Q96: 183.51 | R96: 0.00 | S96: 0.00 | T96: 0.06 | U96: 255
B97: Макароны отварные | C97: 150 | D97: 5.52 | E97: 4.52 | F97: 26.45 | G97: 168.45 | H97: 0.00 | I97: 0.06 | J97: 0.03 | K97: 21.00 | L97: 0.80 | M97: 7.34 | N97: 37.17 | O97: 21.12 | P97: 1.11 | Q97: 10.02 | R97: 0.00 | S97: 0.00 | T97: 0.52 | U97: 309
B98: Чай с сахаром | C98: 215 | D98: 0.07 | E98: 0.02 | F98: 16.10 | G98: 76.00 | H98: 0.03 | I98: 0.00 | J98: 0.00 | K98: 0.00 | L98: 0.00 | M98: 11.11 | N98: 2.80 | O98: 1.44 | P98: 0.31 | Q98: 2.82 | R98: 0.00 | S98: 0.00 | T98: 0.00 | U98: 457.458
B99: Фрукты свежие (сезон) | C99: 100 | D99: =0.8/150*100 -> 0.53 | E99: 0.53 | F99: 13.06 | G99: 58.66 | H99: 13.33 | I99: 0.04 | J99: 0.03 | K99: 0.00 | L99: 0.00 | M99: 32.21 | N99: 14.66 | O99: 12.00 | P99: 2.93 | Q99: 122.32 | R99: 0.00 | S99: 0.00 | T99: 0.04 | U99: 338
B100: Хлеб пшеничный | C100: 20 | D100: 1.58 | E100: 0.20 | F100: 9.66 | G100: 47.20 | H100: 0.00 | I100: 0.03 | J100: 0.01 | K100: 0.00 | L100: 0.00 | M100: 6.94 | N100: 17.42 | O100: 6.60 | P100: 0.40 | Q100: 8.78 | R100: 0.00 | S100: 0.00 | T100: 0.00 | U100: ПР
B101: Хлеб ржаной | C101: 30 | D101: 1.98 | E101: 0.36 | F101: 10.02 | G101: 52.00 | H101: 0.00 | I101: 0.06 | J101: 0.03 | K101: 0.00 | L101: 0.00 | M101: 15.85 | N101: 47.40 | O101: 14.10 | P101: 0.67 | Q101: 24.25 | R101: 0.00 | S101: 0.00 | T101: 0.06 | U101: ПР
B102: Итого: | C102: =SUM(C94:C101) -> 925 | D102: 28.80 | E102: 22.18 | F102: 97.09 | G102: 716.46 | H102: 46.96 | I102: 0.51 | J102: 130.70 | K102: 5234.80 | L102: 0.85 | M102: 151.26 | N102: 433.09 | O102: 115.96 | P102: 13.90 | Q102: 686.25 | R102: 1.21 | S102: 0.24 | T102: 12.87
B103: Итого за день: | C103: =C93+C102 -> 1435 | D103: 45.99 | E103: 47.42 | F103: 178.88 | G103: 1339.03 | H103: 51.79 | I103: 0.69 | J103: 130.94 | K103: 5375.72 | L103: 3.26 | M103: 617.49 | N103: 756.78 | O103: 187.88 | P103: 19.08 | Q103: 791.34 | R103: 1.22 | S103: 0.24 | T103: 13.34
A104: * с 01 марта производится замена на салат из вареных овощей
A105: 7 день
A106: завтрак | B106: Запеканка из творога и риса с сгущеным молоком | C106: 160 | D106: 10.31 | E106: 8.46 | F106: 56.50 | G106: 343.40 | H106: 0.09 | I106: 0.06 | J106: 0.14 | K106: 47.00 | L106: 5.47 | M106: 129.03 | N106: 152.90 | O106: 233.05 | P106: 1.36 | Q106: 65.87 | R106: 0.01 | S106: 0.01 | T106: 0.19 | U106: 188
B107: Чай с сахаром | C107: 200 | D107: 0.07 | E107: 0.02 | F107: 11.09 | G107: 44.40 | H107: 0.03 | I107: 0.00 | J107: 0.00 | K107: 0.00 | L107: 0.00 | M107: 16.76 | N107: 2.80 | O107: 1.44 | P107: 0.31 | Q107: 2.82 | R107: 0.00 | S107: 0.00 | T107: 0.00 | U107: 376
B108: Фрукты свежие (сезон) | C108: 100 | D108: =0.8/150*100 -> 0.53 | E108: 0.53 | F108: 13.06 | G108: 58.66 | H108: 13.33 | I108: 0.04 | J108: 0.03 | K108: 0.00 | L108: 0.00 | M108: 32.21 | N108: 14.66 | O108: 12.00 | P108: 2.93 | Q108: 122.32 | R108: 0.00 | S108: 0.00 | T108: 0.04 | U108: 338
B109: Хлеб пшеничный | C109: 65 | D109: 5.14 | E109: 0.65 | F109: 31.40 | G109: 153.40 | H109: 0.00 | I109: 0.10 | J109: 0.04 | K109: 0.00 | L109: 0.00 | M109: 22.57 | N109: 56.55 | O109: 21.45 | P109: 1.30 | Q109: 28.53 | R109: 0.00 | S109: 0.00 | T109: 0.00 | U109: ПР
B110: Итого: | C110: =SUM(C106:C109) -> 525 | D110: 16.05 | E110: 9.66 | F110: 112.05 | G110: 599.86 | H110: 13.45 | I110: 0.20 | J110: 0.21 | K110: 47.00 | L110: 5.47 | M110: 200.57 | N110: 226.91 | O110: 267.94 | P110: 5.90 | Q110: 219.54 | R110: 0.01 | S110: 0.01 | T110: 0.23
A111: обед | B111: Икра морковная | C111: 60 | D111: 1.32 | E111: 2.76 | F111: 6.53 | G111: 56.22 | H111: 3.07 | I111: 0.03 | J111: 0.04 | K111: 0.00 | L111: 0.00 | M111: 27.75 | N111: 42.00 | O111: 24.77 | P111: 0.73 | Q111: 70.19 | R111: 0.00 | S111: 0.00 | T111: 0.02 | U111: 75
B112: Свекольник | C112: 250 | D112: 2.35 | E112: 6.75 | F112: 11.02 | G112: 114.35 | H112: 8.17 | I112: 0.60 | J112: 0.00 | K112: 16.00 | L112: 0.00 | M112: 48.96 | N112: 0.00 | O112: 30.82 | P112: 0.00 | Q112: 8.17 | R112: 0.00 | S112: 0.00 | T112: 0.00 | U112: 95
B113: Птица в соусе с томатом | C113: 90 | D113: 12.74 | E113: 13.72 | F113: 2.84 | G113: 185.94 | H113: 1.47 | I113: 0.04 | J113: 0.07 | K113: 35.12 | L113: 0.01 | M113: 14.47 | N113: 66.99 | O113: 8.88 | P113: 0.56 | Q113: 113.05 | R113: 2.52 | S113: 0.30 | T113: 48.90 | U113: 364
B114: Капуста тушеная | C114: 200 | D114: 4.40 | E114: 6.80 | F114: 16.20 | G114: 144.00 | H114: 28.40 | I114: 0.05 | J114: 0.00 | K114: 34.20 | L114: 0.00 | M114: 119.40 | N114: 0.00 | O114: 45.80 | P114: 0.00 | Q114: 0.00 | R114: 0.00 | S114: 0.00 | T114: 0.51 | U114: 377
B115: Компот из сухофруктов | C115: 200 | D115: 0.44 | E115: 0.02 | F115: 27.77 | G115: 113.00 | H115: 0.40 | I115: 0.00 | J115: 0.01 | K115: 0.00 | L115: 0.00 | M115: 48.05 | N115: 15.40 | O115: 6.00 | P115: 1.25 | Q115: 38.44 | R115: 0.00 | S115: 0.00 | T115: 0.00 | U115: 349
B116: Хлеб пшеничный | C116: 20 | D116: 1.58 | E116: 0.20 | F116: 9.66 | G116: 47.20 | H116: 0.00 | I116: 0.03 | J116: 0.01 | K116: 0.00 | L116: 0.00 | M116: 6.94 | N116: 17.42 | O116: 6.60 | P116: 0.40 | Q116: 8.78 | R116: 0.00 | S116: 0.00 | T116: 0.00 | U116: ПР
B117: Хлеб ржаной | C117: 30 | D117: 1.98 | E117: 0.36 | F117: 10.02 | G117: 52.00 | H117: 0.00 | I117: 0.06 | J117: 0.03 | K117: 0.00 | L117: 0.00 | M117: 15.85 | N117: 47.40 | O117: 14.10 | P117: 0.67 | Q117: 24.25 | R117: 0.00 | S117: 0.00 | T117: 0.06 | U117: ПР
B118: Итого: | C118: =SUM(C111:C117) -> 850 | D118: 24.81 | E118: 30.61 | F118: 84.04 | G118: 712.71 | H118: 41.51 | I118: 0.81 | J118: 0.16 | K118: 85.32 | L118: 0.01 | M118: 281.42 | N118: 189.21 | O118: 136.97 | P118: 3.61 | Q118: 262.88 | R118: 2.52 | S118: 0.30 | T118: 49.49
B119: Итого за день: | C119: =C110+C118 -> 1375 | D119: 40.86 | E119: 40.27 | F119: 196.09 | G119: 1312.57 | H119: 54.96 | I119: 1.01 | J119: 0.36 | K119: 132.32 | L119: 5.48 | M119: 481.99 | N119: 416.12 | O119: 404.91 | P119: 9.51 | Q119: 482.42 | R119: 2.53 | S119: 0.31 | T119: 49.72
A120: * с 01 марта производится замена на салат из вареных овощей
A121: 8 день
A122: завтрак | B122: Каша молочная пшенная | C122: 205 | D122: 5.34 | E122: 6.08 | F122: 36.65 | G122: 222.50 | H122: 0.00 | I122: 0.14 | J122: 0.03 | K122: 25.00 | L122: 0.00 | M122: 22.65 | N122: 109.00 | O122: 38.13 | P122: 1.28 | Q122: 32.51 | R122: 0.00 | S122: 0.00 | T122: 0.28 | U122: 163
B123: Чай с сахаром | C123: 200 | D123: 0.07 | E123: 0.02 | F123: 11.09 | G123: 44.40 | H123: 0.03 | I123: 0.00 | J123: 0.00 | K123: 0.00 | L123: 0.00 | M123: 16.76 | N123: 2.80 | O123: 1.44 | P123: 0.31 | Q123: 2.82 | R123: 0.00 | S123: 0.00 | T123: 0.00 | U123: 376
B124: Яйцо вареное | C124: 50 | D124: 5.08 | E124: 4.60 | F124: 0.28 | G124: 63.00 | H124: 0.00 | I124: 0.03 | J124: 0.18 | K124: 100.00 | L124: 5.95 | M124: 33.22 | N124: 76.80 | O124: 4.80 | P124: 1.00 | Q124: 18.48 | R124: 0.05 | S124: 0.00 | T124: 0.11 | U124: 209
B125: Хлеб пшеничный | C125: 65 | D125: 5.14 | E125: 0.65 | F125: 31.40 | G125: 153.40 | H125: 0.00 | I125: 0.10 | J125: 0.04 | K125: 0.00 | L125: 0.00 | M125: 22.57 | N125: 56.55 | O125: 21.45 | P125: 1.30 | Q125: 28.53 | R125: 0.00 | S125: 0.00 | T125: 0.00 | U125: ПР
B126: Итого: | C126: =SUM(C122:C125) -> 520 | D126: 15.63 | E126: 11.35 | F126: 79.42 | G126: 483.30 | H126: 0.03 | I126: 0.27 | J126: 0.25 | K126: 125.00 | L126: 5.95 | M126: 95.20 | N126: 245.15 | O126: 65.82 | P126: 3.89 | Q126: 82.34 | R126: 0.05 | S126: 0.00 | T126: 0.39
A127: обед | B127: Салат Витаминный | C127: 60 | D127: 0.78 | E127: 6.12 | F127: 3.66 | G127: 72.60 | H127: 7.98 | I127: 0.02 | J127: 0.00 | K127: 0.00 | L127: 0.00 | M127: 21.30 | N127: 0.00 | O127: 12.30 | P127: 0.00 | Q127: 0.00 | R127: 0.00 | S127: 0.00 | T127: 0.00 | U127: 2
B128: Суп гороховый | C128: 250 | D128: 5.49 | E128: 5.27 | F128: 16.32 | G128: 134.75 | H128: 5.81 | I128: 0.23 | J128: 0.07 | K128: 0.00 | L128: 0.00 | M128: 57.50 | N128: 88.10 | O128: 35.30 | P128: 2.03 | Q128: 156.03 | R128: 0.00 | S128: 0.00 | T128: 0.81 | U128: 102
B129: Котлета из мяса птицы | C129: 90 | D129: 16.01 | E129: 8.07 | F129: 14.97 | G129: 196.50 | H129: 0.75 | I129: 0.09 | J129: 0.15 | K129: 25.20 | L129: 0.91 | M129: 61.38 | N129: 158.10 | O129: 25.35 | P129: 1.64 | Q129: 75.49 | R129: 0.00 | S129: 0.00 | T129: 0.03 | U129: 295
B130: Макароны отварные | C130: 150 | D130: 5.52 | E130: 4.52 | F130: 26.45 | G130: 168.45 | H130: 0.00 | I130: 0.06 | J130: 0.03 | K130: 21.00 | L130: 0.80 | M130: 7.34 | N130: 37.17 | O130: 21.12 | P130: 1.11 | Q130: 10.02 | R130: 0.00 | S130: 0.00 | T130: 0.52 | U130: 309
B131: Напиток из плодов шиповника | C131: 200 | D131: 0.20 | E131: 0.20 | F131: 13.40 | G131: 54.00 | H131: 200.00 | I131: 0.01 | J131: 0.06 | K131: 81.60 | L131: 0.00 | M131: 12.60 | N131: 3.40 | O131: 3.40 | P131: 0.60 | Q131: 10.00 | R131: 0.00 | S131: 0.00 | T131: 0.00 | U131: 388
B132: Хлеб пшеничный | C132: 20 | D132: 1.58 | E132: 0.20 | F132: 9.66 | G132: 47.20 | H132: 0.00 | I132: 0.03 | J132: 0.01 | K132: 0.00 | L132: 0.00 | M132: 6.94 | N132: 17.42 | O132: 6.60 | P132: 0.40 | Q132: 8.78 | R132: 0.00 | S132: 0.00 | T132: 0.00 | U132: ПР
B133: Хлеб ржаной | C133: 30 | D133: 1.98 | E133: 0.36 | F133: 10.02 | G133: 52.00 | H133: 0.00 | I133: 0.06 | J133: 0.03 | K133: 0.00 | L133: 0.00 | M133: 15.85 | N133: 47.40 | O133: 14.10 | P133: 0.67 | Q133: 24.25 | R133: 0.00 | S133: 0.00 | T133: 0.06 | U133: ПР
B134: Итого: | C134: =SUM(C127:C133) -> 800 | D134: 31.56 | E134: 24.74 | F134: 94.48 | G134: 725.50 | H134: 214.54 | I134: 0.50 | J134: 0.35 | K134: 127.80 | L134: =SUM(L127:L133) -> 1.71 | M134: =SUM(M127:M133) -> 182.91 | N134: =SUM(N127:N133) -> 351.59 | O134: =SUM(O127:O133) -> 118.17 | P134: =SUM(P127:P133) -> 6.45 | Q134: 284.57 | R134: 0.00 | S134: 0.00 | T134: 1.42
B135: Итого за день: | C135: =C126+C134 -> 1320 | D135: =D126+D134 -> 47.19 | E135: =E126+E134 -> 36.09 | F135: =F126+F134 -> 173.90 | G135: =G126+G134 -> 1208.80 | H135: =H126+H134 -> 214.57 | I135: =I126+I134 -> 0.77 | J135: =J126+J134 -> 0.60 | K135: =K126+K134 -> 252.80 | L135: =L126+L134 -> 7.66 | M135: =M126+M134 -> 278.11 | N135: =N126+N134 -> 596.74 | O135: =O126+O134 -> 183.99 | P135: =P126+P134 -> 10.34 | Q135: =Q126+Q134 -> 366.91 | R135: =R126+R134 -> 0.05 | S135: =S126+S134 -> 0.00 | T135: =T126+T134 -> 1.81
A136: * с 01 марта производится замена на салат из вареных овощей
A137: 9 день
A138: завтрак | B138: Птица в соусе с томатом | C138: 90 | D138: 12.74 | E138: 13.72 | F138: 2.84 | G138: 185.94 | H138: 1.47 | I138: 0.04 | J138: 0.07 | K138: 35.12 | L138: 0.01 | M138: 14.47 | N138: 66.99 | O138: 8.88 | P138: 0.56 | Q138: 113.05 | R138: 2.52 | S138: 0.30 | T138: 48.90 | U138: 364
B139: Каша гречневая рассыпчатая | C139: 150 | D139: 8.60 | E139: 6.09 | F139: 38.64 | G139: 243.75 | H139: 0.00 | I139: 0.21 | J139: 0.11 | K139: 21.00 | L139: 0.00 | M139: 22.38 | N139: 203.93 | O139: 135.83 | P139: 4.56 | Q139: 85.67 | R139: 0.00 | S139: 0.00 | T139: 0.04 | U139: 302
B140: Чай с сахаром | C140: 200 | D140: 0.07 | E140: 0.02 | F140: 11.09 | G140: 44.40 | H140: 0.03 | I140: 0.00 | J140: 0.00 | K140: 0.00 | L140: 0.00 | M140: 16.76 | N140: 2.80 | O140: 1.44 | P140: 0.31 | Q140: 2.82 | R140: 0.00 | S140: 0.00 | T140: 0.00 | U140: 376
B141: Хлеб пшеничный | C141: 65 | D141: 5.14 | E141: 0.65 | F141: 31.40 | G141: 153.40 | H141: 0.00 | I141: 0.10 | J141: 0.04 | K141: 0.00 | L141: 0.00 | M141: 22.57 | N141: 56.55 | O141: 21.45 | P141: 1.30 | Q141: 28.53 | R141: 0.00 | S141: 0.00 | T141: 0.00 | U141: пр
B142: Итого: | C142: =SUM(C138:C141) -> 505 | D142: 26.55 | E142: 20.48 | F142: 83.97 | G142: 627.49 | H142: 1.50 | I142: 0.35 | J142: 0.22 | K142: 56.12 | L142: 0.01 | M142: 76.18 | N142: 330.27 | O142: 167.60 | P142: 6.73 | Q142: 230.07 | R142: 2.52 | S142: 0.30 | T142: 48.94
A143: обед | B143: Салат из свеклы отварной | C143: 60 | D143: 0.86 | E143: 3.65 | F143: 5.02 | G143: 56.34 | H143: 5.70 | I143: 0.01 | J143: 0.02 | K143: 0.00 | L143: 0.00 | M143: 31.85 | N143: 24.58 | O143: 12.54 | P143: 0.80 | Q143: 54.17 | R143: 0.01 | S143: 0.00 | T143: 0.06 | U143: 52
B144: Суп -лапша домашняя | C144: 250 | D144: 6.85 | E144: 6.32 | F144: 23.10 | G144: 176.75 | H144: 0.50 | I144: 0.08 | J144: 0.00 | K144: 82.70 | L144: 0.00 | M144: 37.35 | N144: 0.00 | O144: 14.70 | P144: 0.00 | Q144: 0.00 | R144: 0.00 | S144: 0.00 | T144: 0.00 | U144: 126
B145: Жаркое по-домашнему | C145: 265 | D145: 16.95 | E145: 11.42 | F145: 24.18 | G145: 260.58 | H145: 31.30 | I145: 0.25 | J145: 0.27 | K145: 31.30 | L145: 0.00 | M145: 51.10 | N145: 246.57 | O145: 48.62 | P145: 2.87 | Q145: 1181.85 | R145: 13.60 | S145: 0.68 | T145: 95.74 | U145: 488
B146: Компот из сухофруктов | C146: 200 | D146: 0.44 | E146: 0.02 | F146: 27.77 | G146: 113.00 | H146: 0.40 | I146: 0.00 | J146: 0.01 | K146: 0.00 | L146: 0.00 | M146: 48.05 | N146: 15.40 | O146: 6.00 | P146: 1.25 | Q146: 38.44 | R146: 0.00 | S146: 0.00 | T146: 0.00 | U146: 349
B147: Хлеб пшеничный | C147: 20 | D147: 1.58 | E147: 0.20 | F147: 9.66 | G147: 47.20 | H147: 0.00 | I147: 0.03 | J147: 0.01 | K147: 0.00 | L147: 0.00 | M147: 6.94 | N147: 17.42 | O147: 6.60 | P147: 0.40 | Q147: 8.78 | R147: 0.00 | S147: 0.00 | T147: 0.00 | U147: ПР
B148: Хлеб ржаной | C148: 30 | D148: 1.98 | E148: 0.36 | F148: 10.02 | G148: 52.00 | H148: 0.00 | I148: 0.06 | J148: 0.03 | K148: 0.00 | L148: 0.00 | M148: 15.85 | N148: 47.40 | O148: 14.10 | P148: 0.67 | Q148: 24.25 | R148: 0.00 | S148: 0.00 | T148: 0.06 | U148: ПР
B149: Итого: | C149: =SUM(C143:C148) -> 825 | D149: 28.66 | E149: 21.97 | F149: 99.75 | G149: 705.87 | H149: 37.90 | I149: 0.43 | J149: 0.33 | K149: 114.00 | L149: 0.00 | M149: 191.14 | N149: 351.37 | O149: 102.56 | P149: 5.99 | Q149: 1307.49 | R149: 13.61 | S149: 0.68 | T149: 95.86
B150: Итого за день: | C150: =C142+C149 -> 1330 | D150: 55.21 | E150: 42.45 | F150: 183.72 | G150: 1333.36 | H150: 39.40 | I150: 0.78 | J150: 0.55 | K150: 170.12 | L150: 0.01 | M150: 267.32 | N150: 681.63 | O150: 270.16 | P150: 12.72 | Q150: 1537.55 | R150: 16.13 | S150: 0.98 | T150: 144.80
A151: * с 01 марта производится замена на салат из вареных овощей
A152: 10 день
A153: завтрак | B153: Каша молочная манная | C153: 205 | D153: 4.38 | E153: 5.10 | F153: 35.83 | G153: 207.29 | H153: 0.00 | I153: 0.04 | J153: 0.03 | K153: 25.75 | L153: 0.43 | M153: 16.72 | N153: 37.85 | O153: 7.60 | P153: 0.46 | Q153: 18.74 | R153: 0.01 | S153: 0.00 | T153: 0.37 | U153: 181
B154: Чай с лимоном | C154: 200 | D154: 0.13 | E154: 0.02 | F154: 11.32 | G154: 45.51 | H154: 3.14 | I154: 0.00 | J154: 0.00 | K154: 0.00 | L154: 0.00 | M154: 21.46 | N154: 4.44 | O154: 2.44 | P154: 0.36 | Q154: 7.03 | R154: 0.00 | S154: 0.00 | T154: 0.01 | U154: 377
B155: Масло сливочное | C155: 10 | D155: 0.10 | E155: 8.30 | F155: 0.10 | G155: 74.80 | H155: 0.00 | I155: 0.00 | J155: 0.01 | K155: 40.00 | L155: 0.80 | M155: 3.62 | N155: 3.00 | O155: 0.00 | P155: 0.02 | Q155: 0.99 | R155: 0.00 | S155: 0.00 | T155: 0.00 | U155: ПР
B156: Кондитерское изделие (пряник) | C156: 30 | D156: 2.30 | E156: 5.40 | F156: 20.10 | G156: 138.90 | H156: 0.00 | I156: 0.00 | J156: 0.00 | K156: 0.00 | L156: 0.00 | M156: 0.00 | N156: 0.00 | O156: 0.00 | P156: 0.00 | Q156: 0.00 | R156: 0.00 | S156: 0.00 | T156: 0.00 | U156: ПР
B157: Хлеб пшеничный | C157: 65 | D157: 5.14 | E157: 0.65 | F157: 31.40 | G157: 153.40 | H157: 0.00 | I157: 0.10 | J157: 0.04 | K157: 0.00 | L157: 0.00 | M157: 22.57 | N157: 56.55 | O157: 21.45 | P157: 1.30 | Q157: 28.53 | R157: 0.00 | S157: 0.00 | T157: 0.00 | U157: ПР
B158: Итого: | C158: =SUM(C153:C157) -> 510 | D158: 12.05 | E158: 19.47 | F158: 98.75 | G158: 619.90 | H158: 3.14 | I158: 0.14 | J158: 0.08 | K158: 65.75 | L158: 1.23 | M158: 64.37 | N158: 101.84 | O158: 31.49 | P158: 2.14 | Q158: 55.29 | R158: 0.01 | S158: 0.00 | T158: 0.38
A159: обед | B159: Огурец свежий (соленый) в нарезке | C159: 60 | D159: 0.45 | E159: 0.07 | F159: 2.10 | G159: 8.47 | H159: 2.10 | I159: 0.01 | J159: 0.06 | K159: 0.00 | L159: 0.00 | M159: 20.84 | N159: 14.40 | O159: 8.40 | P159: 0.36 | Q159: 27.92 | R159: 0.00 | S159: 0.00 | T159: 0.00 | U159: 3
B160: Щи из свежей капусты с картофелем и сметаной | C160: 250 | D160: 1.74 | E160: 4.89 | F160: 8.48 | G160: 84.75 | H160: 18.47 | I160: 0.06 | J160: 0.05 | K160: 0.00 | L160: 0.27 | M160: 65.43 | N160: 47.63 | O160: 22.25 | P160: 0.80 | Q160: 125.29 | R160: 0.00 | S160: 0.00 | T160: 0.72 | U160: 88
B161: Биточки мясные | C161: 90 | D161: 13.98 | E161: 10.61 | F161: 14.46 | G161: 208.50 | H161: 0.14 | I161: 0.09 | J161: 0.15 | K161: 27.00 | L161: 0.43 | M161: 59.12 | N161: 149.55 | O161: 28.95 | P161: 1.35 | Q161: 88.65 | R161: 0.00 | S161: 0.01 | T161: 0.02 | U161: 268
B162: Рис отварной | C162: 160 | D162: 3.89 | E162: 4.58 | F162: 39.11 | G162: 213.28 | H162: 0.00 | I162: 0.02 | J162: 0.02 | K162: 22.40 | L162: 0.28 | M162: 3.89 | N162: 64.64 | O162: 20.27 | P162: 0.54 | Q162: 14.16 | R162: 0.00 | S162: 0.00 | T162: 0.54 | U162: 304
B163: Компот из свежих фруктов | C163: 200 | D163: 0.16 | E163: 0.16 | F163: 23.88 | G163: 97.60 | H163: 1.72 | I163: 0.01 | J163: 0.01 | K163: 0.00 | L163: 0.00 | M163: 21.86 | N163: 4.40 | O163: 3.60 | P163: 0.94 | Q163: 36.89 | R163: 0.00 | S163: 0.00 | T163: 0.60 | U163: 342
B164: Хлеб пшеничный | C164: 20 | D164: 1.58 | E164: 0.20 | F164: 9.66 | G164: 47.20 | H164: 0.00 | I164: 0.03 | J164: 0.01 | K164: 0.00 | L164: 0.00 | M164: 6.94 | N164: 17.42 | O164: 6.60 | P164: 0.40 | Q164: 8.78 | R164: 0.00 | S164: 0.00 | T164: 0.00 | U164: ПР
B165: Хлеб ржаной | C165: 30 | D165: 1.98 | E165: 0.36 | F165: 10.02 | G165: 52.00 | H165: 0.00 | I165: 0.06 | J165: 0.03 | K165: 0.00 | L165: 0.00 | M165: 15.85 | N165: 47.40 | O165: 14.10 | P165: 0.67 | Q165: 24.25 | R165: 0.00 | S165: 0.00 | T165: 0.06 | U165: ПР
B166: Итого: | C166: =SUM(C159:C165) -> 810 | D166: 23.78 | E166: 20.87 | F166: 107.71 | G166: =SUM(G159:G165) -> 711.80 | H166: 22.43 | I166: 0.28 | J166: 0.33 | K166: 49.40 | L166: 0.98 | M166: 193.93 | N166: 345.44 | O166: 104.17 | P166: 5.06 | Q166: 325.94 | R166: 0.00 | S166: 0.01 | T166: 1.94
B167: Итого за день: | C167: =C158+C166 -> 1320 | D167: 35.83 | E167: 40.34 | F167: 206.46 | G167: 1331.70 | H167: 25.57 | I167: 0.42 | J167: 0.41 | K167: 115.15 | L167: 2.21 | M167: 258.30 | N167: 447.28 | O167: 135.66 | P167: 7.20 | Q167: 381.23 | R167: 0.01 | S167: 0.01 | T167: 2.32
A168: * с 01 марта производится замена на салат из вареных овощей
B169: Итого за 10 дней: | C169: =C18+C34+C51+C69+C85+C103+C119+C135+C150+C167 -> 13480 | D169: =D18+D34+D51+D69+D85+D103+D119+D135+D150+D167 -> 447.98 | E169: =E18+E34+E51+E69+E85+E103+E119+E135+E150+E167 -> 467.75 | F169: =F18+F34+F51+F69+F85+F103+F119+F135+F150+F167 -> 1909.61 | G169: =G18+G34+G51+G69+G85+G103+G119+G135+G150+G167 -> 13684.80 | H169: =H18+H34+H51+H69+H85+H103+H119+H135+H150+H167 -> 520.14 | I169: =I18+I34+I51+I69+I85+I103+I119+I135+I150+I167 -> 7.35 | J169: =J18+J34+J51+J69+J85+J103+J119+J135+J150+J167 -> 135.62 | K169: =K18+K34+K51+K69+K85+K103+K119+K135+K150+K167 -> 7110.98 | L169: =L18+L34+L51+L69+L85+L103+L119+L135+L150+L167 -> 49.32 | M169: =M18+M34+M51+M69+M85+M103+M119+M135+M150+M167 -> 3941.58 | N169: =N18+N34+N51+N69+N85+N103+N119+N135+N150+N167 -> 5846.79 | O169: =O18+O34+O51+O69+O85+O103+O119+O135+O150+O167 -> 2174.04 | P169: =P18+P34+P51+P69+P85+P103+P119+P135+P150+P167 -> 112.36 | Q169: =Q18+Q34+Q51+Q69+Q85+Q103+Q119+Q135+Q150+Q167 -> 6186.60 | R169: =R18+R34+R51+R69+R85+R103+R119+R135+R150+R167 -> 20.06 | S169: =S18+S34+S51+S69+S85+S103+S119+S135+S150+S167 -> 1.61 | T169: =T18+T34+T51+T69+T85+T103+T119+T135+T150+T167 -> 220.84
B170: Средний за 10 дней: | C170: =C169/10 -> 1348 | D170: =D169/10 -> 44.80 | E170: =E169/10 -> 46.78 | F170: 190.96 | G170: 1368.48 | H170: =H169/10 -> 52.01 | I170: =I169/10 -> 0.73 | J170: =J169/10 -> 13.56 | K170: 711.10 | L170: =L169/10 -> 4.93 | M170: 394.16 | N170: 584.68 | O170: 217.40 | P170: 11.24 | Q170: =Q169/10 -> 618.66 | R170: =R169/10 -> 2.01 | S170: =S169/10 -> 0.1610 | T170: =T169/10 -> 22.08
A172: Сборники рецептур блюд:
A173: Сборник рецептур на продукцию для обучающихся во всех образовательных учреждениях. Сборник технических нормативов. Москва Дели плюс 2015 год.
A174: *Сборник рецептур на продукцию для питания детей в дошкольных образовательных организациях. Сборник технических нормативов. Москва Дели плюс 2015 год.
A175: Сборник технических нормативов. Сборник рецептур блюд и кулинарных изделий для предприятий общественного питания при общеобразовательных школах. "Хлебпродинформ" Москва 2004 год.

Sheet титул 7-11
A14: ОСНОВНОЕ МЕНЮ муниципального контракта на оказание услуг по организации горячим питанием образовательных учреждений города Астрахани для учащихся от 7 до 11 лет , 10-ти дневное.
A15: С использованием:
A17: * Сборник рецептур на продукцию для обучающихся во всех образовательных учреждениях, Сборник технических нормативов, издательство Москва "Дели плюс" 2017 г., рекомендовано НИИ питания РАМН, руководители разработки сборника Могильный М.П. (ГОУ ВПО ПГТУ), Тутельян В.А.(ГУУ НИИ питания РАМН), А.Я.Перевалов 2018 г.
A18: Согласно СанПиН 2.3/2.4.3590-20, Таблица № 2
A26: Астрахань 2025 год.
